fUST/lending_fUST_20260219
["ID","MTS","AMOUNT","RATE_DAILY","PERIOD"]
[405947376,1771436339556,-215.79106641,0.00041004,120]
[405947377,1771436339581,-191.39587576,0.00041004,120]
[405947378,1771436339606,-287.36506553,0.00041004,120]
[405947379,1771436339630,-287.36506553,0.00041004,120]
[405947380,1771436339652,-191.39587576,0.00041004,120]
[405947381,1771436339675,-1662.49725673,0.00041004,120]
[405947382,1771436339697,-151.88356828,0.00041004,120]
[405947383,1771436339720,-206.72874926,0.00041004,120]
[405947384,1771436339743,-171.63972202,0.00041004,120]
[405947385,1771436339765,-168.51793774,0.00041004,120]
[405947386,1771436339792,-168.51793774,0.00041004,120]
[405947387,1771436339817,-342.26684545,0.00041004,120]
[405947388,1771436339842,-169.8290427,0.00041004,120]
[405947389,1771436339868,-342.26684545,0.00041004,120]
[405947390,1771436339891,-169.8290427,0.00041004,120]
[405947391,1771436339915,-342.26684545,0.00041004,120]
[405947392,1771436339939,-169.8290427,0.00041004,120]
[405947393,1771436339965,-342.26684545,0.00041004,120]
[405947394,1771436339987,-169.8290427,0.00041004,120]
[405947395,1771436340012,-342.26684545,0.00041004,120]
[405947396,1771436340035,-169.8290427,0.00041004,120]
[405947397,1771436340059,-342.26684545,0.00041004,120]
[405947398,1771436340083,-342.26684545,0.00041004,120]
[405947399,1771436340108,-169.8290427,0.00041004,120]
[405947400,1771436340133,-342.26684545,0.00041004,120]
[405947401,1771436340159,-342.26684545,0.00041004,120]
[405947402,1771436340183,-342.26684545,0.00041004,120]
[405947403,1771436340207,-342.26684545,0.00041004,120]
[405947404,1771436340232,-342.26684545,0.00041004,120]
[405947405,1771436340257,-342.26684545,0.00041004,120]
[405947406,1771436340283,-342.26684545,0.00041004,120]
[405947407,1771436340308,-342.26684545,0.00041004,120]
[405947408,1771436340336,-265.23591436,0.00041004,120]
[405947409,1771436340362,-370.08565141,0.00041004,120]
[405947410,1771436340391,-370.08565141,0.00041004,120]
[405947411,1771436340419,-265.23591436,0.00041004,120]
[405947412,1771436340443,-265.23591436,0.00041004,120]
[405947413,1771436340466,-196.098,0.00041004,31]
[405947414,1771436340492,-352.28092463,0.00041004,120]
[405947415,1771436340519,-220.750613,0.00041004,120]
[405947416,1771436340554,-352.28092463,0.00041004,120]
[405947417,1771436340577,-220.750613,0.00041004,120]
[405947418,1771436340603,-352.28092463,0.00041004,120]
[405947419,1771436340626,-1524.77856729,0.00041004,120]
[405947420,1771436340651,-158.42205178,0.00041004,120]
[405947421,1771436340677,-337.8767203,0.00041004,120]
[405947422,1771436340701,-158.42205178,0.00041004,120]
[405947423,1771436340725,-337.8767203,0.00041004,120]
[405947424,1771436340749,-337.8767203,0.00041004,120]
[405947425,1771436340776,-158.42205178,0.00041004,120]
[405947426,1771436340799,-172.59571012,0.00041004,120]
[405947427,1771436340823,-495.46533311,0.00041004,120]
[405947428,1771436340847,-159.14664076,0.00041004,120]
[405947429,1771436340869,-167.72343987,0.00041004,120]
[405947430,1771436340892,-495.46533311,0.00041004,120]
[405947431,1771436340916,-495.46533311,0.00041004,120]
[405947432,1771436340940,-495.46533311,0.00041004,120]
[405947433,1771436340963,-495.46533311,0.00041004,120]
[405947434,1771436340986,-495.46533311,0.00041004,120]
[405947435,1771436341114,-495.46533311,0.00041004,120]
[405947436,1771436341143,-495.46533311,0.00041004,120]
[405947437,1771436341169,-495.46533311,0.00041004,120]
[405947438,1771436341193,-495.46533311,0.00041004,120]
[405947439,1771436341217,-495.46533311,0.00041004,120]
[405947440,1771436341241,-495.46533311,0.00041004,120]
[405947441,1771436341267,-877.45867846,0.00041004,120]
[405947442,1771436341290,-1808.00251628,0.00041004,30]
[405947443,1771436341313,-201.87610237,0.00041004,120]
[405947444,1771436341340,-9797.30314121,0.00041004,60]
[405947445,1771436341367,-472.08343685,0.00041004,120]
[405947446,1771436341395,-472.08343685,0.00041004,120]
[405947447,1771436341421,-472.08343685,0.00041004,120]
[405947448,1771436341446,-472.08343685,0.00041004,120]
[405947449,1771436341472,-472.08343685,0.00041004,120]
[405947450,1771436341499,-472.08343685,0.00041004,120]
[405947451,1771436341523,-472.08343685,0.00041004,120]
[405947452,1771436341548,-472.08343685,0.00041004,120]
[405947453,1771436341571,-472.08343685,0.00041004,120]
[405947454,1771436341596,-472.08343685,0.00041004,120]
[405947455,1771436341620,-472.08343685,0.00041004,120]
[405947456,1771436341647,-472.08343685,0.00041004,120]
[405947457,1771436341675,-472.08343685,0.00041004,120]
[405947458,1771436341703,-472.08343685,0.00041004,120]
[405947459,1771436341730,-157.36114561,0.00041004,120]
[405947460,1771436341757,-157.36114561,0.00041004,120]
[405947461,1771436341784,-2360.96255389,0.00041004,120]
[405947462,1771436341809,-195.5509533,0.00041004,30]
[405947463,1771436341835,-195.5509533,0.00041004,30]
[405947464,1771436341861,-323.5439759,0.00041004,30]
[405947465,1771436341885,-323.5439759,0.00041004,30]
[405947466,1771436341914,-150.0,0.00041004,30]
[405947467,1771436341936,-150.0,0.00041004,30]
[405947468,1771436341959,-196.2672348,0.00041004,30]
[405947469,1771436341981,-198.1080524,0.00041004,30]
[405947470,1771436342005,-150.0,0.00041004,30]
[405947471,1771436342028,-150.0,0.00041004,30]
[405947472,1771436342052,-323.5439759,0.00041004,30]
[405947473,1771436342076,-150.0,0.00041004,30]
[405947474,1771436342099,-198.1276725,0.00041004,30]
[405947475,1771436342124,-150.8391616,0.00041004,30]
[405947476,1771436342149,-323.5439759,0.00041004,30]
[405947477,1771436342171,-150.0,0.00041004,30]
[405947478,1771436342195,-195.4493912,0.00041004,30]
[405947479,1771436342221,-327.0377345,0.00041004,30]
[405947480,1771436342244,-184.398626,0.00041004,30]
[405947481,1771436342270,-150.0,0.00041004,30]
[405947482,1771436342294,-195.4493912,0.00041004,30]
[405947483,1771436342317,-150.6939557,0.00041004,30]
[405947484,1771436342344,-186.0614474,0.00041004,30]
[405947485,1771436342368,-323.5439759,0.00041004,30]
[405947486,1771436342393,-306.9675357,0.00041004,30]
[405947487,1771436342417,-606.1669609,0.00041004,30]
[405947488,1771436342440,-150.0,0.00041004,30]
[405947489,1771436342462,-195.4493912,0.00041004,30]
[405947490,1771436342486,-150.0,0.00041004,30]
[405947491,1771436342509,-606.1669609,0.00041004,30]
[405947492,1771436342533,-323.5439759,0.00041004,30]
[405947493,1771436342557,-186.0614474,0.00041004,30]
[405947494,1771436342580,-306.9675357,0.00041004,30]
[405947495,1771436342604,-606.1669609,0.00041004,30]
[405947496,1771436342628,-323.3963262,0.00041004,30]
[405947497,1771436342652,-150.0,0.00041004,30]
[405947498,1771436342676,-419.6713427,0.00041004,30]
[405947499,1771436342703,-323.5439759,0.00041004,30]
[405947500,1771436342726,-150.0,0.00041004,30]
[405947501,1771436342751,-195.4493912,0.00041004,30]
[405947502,1771436342776,-150.0,0.00041004,30]
[405947503,1771436342800,-150.0,0.00041004,30]
[405947504,1771436342825,-306.9675357,0.00041004,30]
[405947505,1771436342850,-186.0614474,0.00041004,30]
[405947506,1771436342874,-606.1669609,0.00041004,30]
[405947507,1771436342898,-323.5439759,0.00041004,30]
[405947508,1771436342922,-195.4493912,0.00041004,30]
[405947509,1771436342947,-606.1669609,0.00041004,30]
[405947510,1771436342972,-321.5596394,0.00041004,30]
[405947511,1771436342998,-150.0,0.00041004,30]
[405947512,1771436343022,-323.5439759,0.00041004,30]
[405947513,1771436343047,-606.1669609,0.00041004,30]
[405947514,1771436343070,-150.0,0.00041004,30]
[405947515,1771436343094,-323.5439759,0.00041004,30]
[405947516,1771436343117,-606.1669609,0.00041004,30]
[405947517,1771436343141,-150.0,0.00041004,30]
[405947518,1771436343164,-606.1669609,0.00041004,30]
[405947519,1771436343187,-308.7645886,0.00041004,30]
[405947520,1771436343210,-186.0614474,0.00041004,30]
[405947521,1771436343232,-306.9675357,0.00041004,30]
[405947522,1771436343256,-150.0,0.00041004,30]
[405947523,1771436343281,-253.7327652,0.00041004,30]
[405947524,1771436343303,-323.3963262,0.00041004,30]
[405947525,1771436343326,-306.9675357,0.00041004,30]
[405947526,1771436343352,-186.0614474,0.00041004,30]
[405947527,1771436343375,-606.1669609,0.00041004,30]
[405947528,1771436343400,-150.0,0.00041004,30]
[405947529,1771436343424,-186.0614474,0.00041004,30]
[405947530,1771436343448,-606.1669609,0.00041004,30]
[405947531,1771436343471,-323.5439759,0.00041004,30]
[405947532,1771436343494,-186.0614474,0.00041004,30]
[405947533,1771436343517,-323.3549465,0.00041004,30]
[405947534,1771436343540,-150.0,0.00041004,30]
[405947535,1771436343562,-195.4493912,0.00041004,30]
[405947536,1771436343586,-323.5439759,0.00041004,30]
[405947537,1771436343610,-306.9675357,0.00041004,30]
[405947538,1771436343633,-606.1669609,0.00041004,30]
[405947539,1771436343753,-186.0614474,0.00041004,30]
[405947540,1771436343777,-150.0,0.00041004,30]
[405947541,1771436343800,-150.0,0.00041004,30]
[405947542,1771436343822,-606.1669609,0.00041004,30]
[405947543,1771436343846,-306.9675357,0.00041004,30]
[405947544,1771436343870,-323.3963262,0.00041004,30]
[405947545,1771436343894,-186.0614474,0.00041004,30]
[405947546,1771436343917,-150.0,0.00041004,30]
[405947547,1771436343941,-306.9675357,0.00041004,30]
[405947548,1771436343965,-186.0614474,0.00041004,30]
[405947549,1771436343992,-323.5439759,0.00041004,30]
[405947550,1771436344016,-306.9675358,0.00041004,30]
[405947551,1771436344038,-323.3963262,0.00041004,30]
[405947552,1771436344061,-195.4493912,0.00041004,30]
[405947553,1771436344085,-606.1669609,0.00041004,30]
[405947554,1771436344108,-323.3963262,0.00041004,30]
[405947555,1771436344131,-186.0725867,0.00041004,30]
[405947556,1771436344154,-306.9675357,0.00041004,30]
[405947557,1771436344179,-195.4493912,0.00041004,30]
[405947558,1771436344203,-323.5439759,0.00041004,30]
[405947559,1771436344227,-606.1451367,0.00041004,30]
[405947560,1771436344249,-306.9675357,0.00041004,30]
[405947561,1771436344273,-606.1669609,0.00041004,30]
[405947562,1771436344296,-323.3963262,0.00041004,30]
[405947563,1771436344318,-306.9675357,0.00041004,30]
[405947564,1771436344342,-606.2148563,0.00041004,30]
[405947565,1771436344368,-323.3963262,0.00041004,30]
[405947566,1771436344392,-195.4122544,0.00041004,30]
[405947567,1771436344418,-150.8114129,0.00041004,30]
[405947568,1771436344445,-203.4022512,0.00041004,30]
[405947569,1771436344473,-323.3963262,0.00041004,30]
[405947570,1771436344498,-150.0,0.00041004,30]
[405947571,1771436344524,-186.0614474,0.00041004,30]
[405947572,1771436344551,-306.9675357,0.00041004,30]
[405947573,1771436344577,-187.0417042,0.00041004,30]
[405947574,1771436344601,-168.1380646,0.00041004,30]
[405947575,1771436344625,-323.3963262,0.00041004,30]
[405947576,1771436344650,-323.3963262,0.00041004,30]
[405947577,1771436344674,-606.1669609,0.00041004,30]
[405947578,1771436344700,-323.3963262,0.00041004,30]
[405947579,1771436344724,-606.166961,0.00041004,30]
[405947580,1771436344748,-195.5509533,0.00041004,30]
[405947581,1771436344771,-323.5439759,0.00041004,30]
[405947582,1771436344795,-606.1669609,0.00041004,30]
[405947583,1771436344819,-310.0691522,0.00041004,30]
[405947584,1771436344842,-186.0614474,0.00041004,30]
[405947585,1771436344866,-150.0,0.00041004,30]
[405947586,1771436344890,-186.0503081,0.00041004,30]
[405947587,1771436344915,-606.1887851,0.00041004,30]
[405947588,1771436344938,-306.9675357,0.00041004,30]
[405947589,1771436344962,-323.3963262,0.00041004,30]
[405947590,1771436344986,-150.0,0.00041004,30]
[405947591,1771436345011,-186.0614474,0.00041004,30]
[405947592,1771436345036,-186.0614474,0.00041004,30]
[405947593,1771436345063,-150.0,0.00041004,30]
[405947594,1771436345090,-610.726184,0.00041004,30]
[405947595,1771436345117,-186.0614474,0.00041004,30]
[405947596,1771436345142,-306.9675357,0.00041004,30]
[405947597,1771436345168,-188.0650668,0.00041004,30]
[405947598,1771436345196,-323.4891463,0.00041004,30]
[405947599,1771436345220,-606.1669609,0.00041004,30]
[405947600,1771436345244,-186.0503081,0.00041004,30]
[405947601,1771436345269,-150.0,0.00041004,30]
[405947602,1771436345294,-156.7781758,0.00041004,30]
[405947603,1771436345317,-186.1059888,0.00041004,30]
[405947604,1771436345344,-306.9675357,0.00041004,30]
[405947605,1771436345368,-323.5439759,0.00041004,30]
[405947606,1771436345396,-186.016906,0.00041004,30]
[405947607,1771436345423,-307.0395122,0.00041004,30]
[405947608,1771436345447,-606.1451367,0.00041004,30]
[405947609,1771436345472,-186.0614474,0.00041004,30]
[405947610,1771436345496,-195.4493914,0.00041004,30]
[405947611,1771436345519,-323.3963262,0.00041004,30]
[405947612,1771436345543,-151.046733,0.00041004,30]
[405947613,1771436345565,-606.1669609,0.00041004,30]
[405947614,1771436345588,-311.9192111,0.00041004,30]
[405947615,1771436345611,-186.0503081,0.00041004,30]
[405947616,1771436345635,-323.4891463,0.00041004,30]
[405947617,1771436345661,-150.0,0.00041004,30]
[405947618,1771436345687,-186.0614474,0.00041004,30]
[405947619,1771436345710,-328.2213346,0.00041004,30]
[405947620,1771436345736,-606.1451367,0.00041004,30]
[405947621,1771436345763,-306.9675357,0.00041004,30]
[405947622,1771436345788,-198.4405406,0.00041004,30]
[405947623,1771436345815,-186.0614474,0.00041004,30]
[405947624,1771436345839,-323.1178658,0.00041004,30]
[405947625,1771436345862,-306.8955593,0.00041004,30]
[405947626,1771436345886,-195.4493912,0.00041004,30]
[405947627,1771436345909,-150.0,0.00041004,30]
[405947628,1771436345932,-606.1887851,0.00041004,30]
[405947629,1771436345956,-306.9675357,0.00041004,30]
[405947630,1771436345980,-186.0614476,0.00041004,30]
[405947631,1771436346003,-323.3963262,0.00041004,30]
[405947632,1771436346025,-150.0,0.00041004,30]
[405947633,1771436346049,-306.9675357,0.00041004,30]
[405947634,1771436346072,-186.0614474,0.00041004,30]
[405947635,1771436346097,-606.1669609,0.00041004,30]
[405947636,1771436346120,-195.4493912,0.00041004,30]
[405947637,1771436346144,-306.9675357,0.00041004,30]
[405947638,1771436346167,-323.4891463,0.00041004,30]
[405947639,1771436346190,-606.1887851,0.00041004,30]
[405947640,1771436346213,-195.3818194,0.00041004,30]
[405947641,1771436346237,-606.1669609,0.00041004,30]
[405947642,1771436346260,-245.6594721,0.00041004,30]
[405947643,1771436346283,-186.9972124,0.00041004,30]
[405947644,1771436346307,-150.0,0.00041004,30]
[405947645,1771436346432,-195.486528,0.00041004,30]
[405947646,1771436346457,-307.0027813,0.00041004,30]
[405947647,1771436346483,-606.1669609,0.00041004,30]
[405947648,1771436346508,-323.3963262,0.00041004,30]
[405947649,1771436346532,-606.1887851,0.00041004,30]
[405947650,1771436346556,-306.9675357,0.00041004,30]
[405947651,1771436346581,-195.4493912,0.00041004,30]
[405947652,1771436346607,-323.3963262,0.00041004,30]
[405947653,1771436346632,-195.4493912,0.00041004,30]
[405947654,1771436346656,-150.0,0.00041004,30]
[405947655,1771436346684,-150.0,0.00041004,30]
[405947656,1771436346708,-606.1669609,0.00041004,30]
[405947657,1771436346732,-186.0614474,0.00041004,30]
[405947658,1771436346756,-306.9675357,0.00041004,30]
[405947659,1771436346782,-323.3963262,0.00041004,30]
[405947660,1771436346806,-150.0,0.00041004,30]
[405947661,1771436346830,-195.4493912,0.00041004,30]
[405947662,1771436346855,-186.0614474,0.00041004,30]
[405947663,1771436346879,-327.9230823,0.00041004,30]
[405947664,1771436346902,-306.9675357,0.00041004,30]
[405947665,1771436346926,-150.0,0.00041004,30]
[405947666,1771436346950,-306.93229,0.00041004,30]
[405947667,1771436346973,-150.0,0.00041004,30]
[405947668,1771436346996,-195.516963,0.00041004,30]
[405947669,1771436347020,-306.9675357,0.00041004,30]
[405947670,1771436347044,-150.0,0.00041004,30]
[405947671,1771436347068,-150.0,0.00041004,30]
[405947672,1771436347093,-606.1669609,0.00041004,30]
[405947673,1771436347118,-306.9675357,0.00041004,30]
[405947674,1771436347142,-186.0614474,0.00041004,30]
[405947675,1771436347166,-192.5231762,0.00041004,30]
[405947676,1771436347190,-606.1669609,0.00041004,30]
[405947677,1771436347215,-323.5439759,0.00041004,30]
[405947678,1771436347249,-306.9675357,0.00041004,30]
[405947679,1771436347278,-150.0,0.00041004,30]
[405947680,1771436347304,-150.0,0.00041004,30]
[405947681,1771436347331,-195.5509533,0.00041004,30]
[405947682,1771436347361,-150.0,0.00041004,30]
[405947683,1771436347387,-150.0,0.00041004,30]
[405947684,1771436347414,-195.5509533,0.00041004,30]
[405947685,1771436347440,-606.1887851,0.00041004,30]
[405947686,1771436347466,-150.0,0.00041004,30]
[405947687,1771436347491,-306.9675357,0.00041004,30]
[405947688,1771436347518,-186.0614474,0.00041004,30]
[405947689,1771436347545,-323.5439759,0.00041004,30]
[405947690,1771436347571,-195.4493912,0.00041004,30]
[405947691,1771436347597,-150.0,0.00041004,30]
[405947692,1771436347622,-186.0614474,0.00041004,30]
[405947693,1771436347647,-306.9675357,0.00041004,30]
[405947694,1771436347672,-323.5439759,0.00041004,30]
[405947695,1771436347698,-606.1887851,0.00041004,30]
[405947696,1771436347725,-306.9675357,0.00041004,30]
[405947697,1771436347751,-150.0,0.00041004,30]
[405947698,1771436347779,-323.5439759,0.00041004,30]
[405947699,1771436347805,-186.0614474,0.00041004,30]
[405947700,1771436347832,-606.1190655,0.00041004,30]
[405947701,1771436347861,-606.2148563,0.00041004,30]
[405947702,1771436347886,-189.4353087,0.00041004,30]
[405947703,1771436347911,-150.0,0.00041004,30]
[405947704,1771436347936,-195.5509533,0.00041004,30]
[405947705,1771436347960,-150.0,0.00041004,30]
[405947706,1771436347986,-150.8583069,0.00041004,30]
[405947707,1771436348011,-606.1669609,0.00041004,30]
[405947708,1771436348043,-186.0614474,0.00041004,30]
[405947709,1771436348080,-323.3963262,0.00041004,30]
[405947710,1771436348107,-306.9675357,0.00041004,30]
[405947711,1771436348132,-606.1669609,0.00041004,30]
[405947712,1771436348156,-323.3963262,0.00041004,30]
[405947713,1771436348182,-186.0614474,0.00041004,30]
[405947714,1771436348208,-195.5509533,0.00041004,30]
[405947715,1771436348244,-322.5104281,0.00041004,30]
[405947716,1771436348278,-606.1669609,0.00041004,30]
[405947717,1771436348314,-202.72092055,0.00041004,120]
[405947718,1771436348342,-195.4493912,0.00041004,30]
[405947719,1771436348375,-531.6978,0.00041004,120]
[405947721,1771436364994,-348.94017021,0.0001915,32]
[405947722,1771436365022,-348.94017021,0.00020925,48]
[405947723,1771436365050,-348.94017021,0.000227,63]
[405947724,1771436365198,-348.94017021,0.00024474,79]
[405947725,1771436365223,-348.94017021,0.00026249,94]
[405947726,1771436365248,-198.92693578,0.00026547,120]
[405947727,1771436365287,-206.66955725,0.00027208,120]
[405947728,1771436365313,-348.94017021,0.00028024,110]
[405947729,1771436365342,-5636.86,0.0003,30]
[405947730,1771436365368,-5636.86,0.000309,30]
[405947731,1771436365395,-253.91115737,0.00031,60]
[405947732,1771436365423,-5636.86,0.000318,30]
[405947733,1771436365452,-5636.86,0.000327,120]
[405947734,1771436365482,-2655.06,0.00032876,120]
[405947735,1771436365512,-1215.36277207,0.000332,117]
[405947736,1771436365538,-1215.36277205,0.000332,117]
[405947737,1771436365564,-1215.36277205,0.000332,117]
[405947738,1771436365593,-268.0,0.000333,120]
[405947739,1771436365623,-600.0,0.00033532,30]
[405947740,1771436365648,-5636.86,0.000336,120]
[405947741,1771436365674,-2000.0,0.00034,60]
[405947742,1771436365701,-210.0,0.00034,30]
[405947743,1771436365727,-151.0,0.000342,31]
[405947744,1771436365753,-151.0,0.000342,31]
[405947745,1771436365780,-151.0,0.000342,31]
[405947746,1771436365806,-501.896449,0.000342,31]
[405947747,1771436365831,-501.896449,0.000342,31]
[405947748,1771436365856,-501.896449,0.000342,31]
[405947749,1771436365880,-501.896449,0.000342,31]
[405947750,1771436365907,-2655.06,0.00034246,120]
[405947751,1771436365932,-5636.86,0.000345,120]
[405947752,1771436365958,-1215.36277205,0.00034868,120]
[405947753,1771436365983,-500.0,0.00035,30]
[405947754,1771436366007,-15000.0,0.00035,120]
[405947755,1771436366033,-151.0,0.00035,31]
[405947756,1771436366056,-151.0,0.00035,31]
[405947757,1771436366082,-151.0,0.00035,31]
[405947758,1771436366107,-151.0,0.00035,31]
[405947759,1771436366133,-299.786473,0.00035,31]
[405947760,1771436366158,-501.896449,0.00035,31]
[405947761,1771436366182,-501.896449,0.00035,31]
[405947762,1771436366207,-501.896449,0.00035,31]
[405947763,1771436366231,-501.896449,0.00035,31]
[405947764,1771436366255,-501.896449,0.00035,31]
[405947765,1771436366284,-501.896449,0.00035,31]
[405947766,1771436366309,-501.896449,0.00035,31]
[405947767,1771436366335,-501.896449,0.00035,31]
[405947768,1771436366363,-5636.86,0.000354,120]
[405947769,1771436366390,-2655.06,0.00035616,120]
[405947770,1771436366418,-151.0,0.00035616,31]
[405947771,1771436366443,-151.0,0.00035616,31]
[405947772,1771436366467,-151.0,0.00035616,31]
[405947773,1771436366490,-151.0,0.00035616,31]
[405947774,1771436366514,-151.0,0.00035616,31]
[405947775,1771436366538,-157.786786,0.00035616,31]
[405947776,1771436366562,-151.0,0.000359,31]
[405947777,1771436366586,-151.0,0.00036164,31]
[405947778,1771436366610,-151.0,0.00036164,31]
[405947779,1771436366634,-501.896449,0.00036164,31]
[405947780,1771436366657,-501.896449,0.00036164,31]
[405947781,1771436366680,-501.896449,0.00036164,31]
[405947782,1771436366703,-501.896449,0.00036164,31]
[405947783,1771436366727,-5636.86,0.000363,120]
[405947784,1771436366755,-720.0,0.00036886,30]
[405947785,1771436366779,-2655.06,0.00036986,120]
[405947786,1771436366803,-5636.86,0.000372,120]
[405947787,1771436366826,-151.0,0.000372,31]
[405947788,1771436366850,-151.0,0.000372,31]
[405947789,1771436366873,-501.896449,0.000372,31]
[405947790,1771436366897,-501.896449,0.000372,31]
[405947791,1771436366923,-501.896449,0.000372,31]
[405947792,1771436366948,-501.896447,0.000372,31]
[405947793,1771436366974,-19999.94,0.000375,120]
[405947794,1771436367002,-5636.86,0.000381,120]
[405947795,1771436367030,-194.69,0.000381,30]
[405947796,1771436367059,-187.60619075,0.00038195,60]
[405947797,1771436367086,-2655.06,0.00038356,120]
[405947798,1771436367117,-5636.86,0.00039,120]
[405947799,1771436367142,-1455015.64446078,0.00039,120]
[405947800,1771436367169,-5001.69289563,0.00039,60]
[405947801,1771436367194,-5000.0,0.00039,75]
[405947802,1771436367218,-200.0,0.00039085,120]
[405947803,1771436367243,-200.0,0.0003919,120]
[405947804,1771436367269,-200.0,0.00039253,120]
[405947805,1771436367296,-13596.56658359,0.0003944,30]
[405947806,1771436367320,-5000.0,0.000395,60]
[405947807,1771436367346,-1028.28,0.00039726,120]
[405947808,1771436367371,-2655.06,0.00039726,120]
[405947809,1771436367397,-200.0,0.00039796,120]
[405947810,1771436367424,-5046.21177128,0.00039899,30]
[405947811,1771436367448,-2000.0,0.00039899,30]
[405947812,1771436367471,-151.0,0.00039899,30]
[405947813,1771436367495,-2000.0,0.00039899,30]
[405947814,1771436367520,-151.0,0.00039899,30]
[405947815,1771436367545,-2000.0,0.00039899,30]
[405947816,1771436367567,-151.0,0.00039899,30]
[405947817,1771436367591,-2000.0,0.00039899,30]
[405947818,1771436367616,-500.0,0.00039899,30]
[405947819,1771436367640,-250.0,0.00039899,30]
[405947820,1771436367667,-156.587,0.00039899,30]
[405947821,1771436367692,-151.0,0.00039899,30]
[405947822,1771436367717,-250.0,0.00039899,30]
[405947823,1771436367742,-500.0,0.00039899,30]
[405947824,1771436367882,-250.0,0.00039899,30]
[405947825,1771436367908,-500.0,0.00039899,30]
[405947826,1771436367934,-250.0,0.00039899,30]
[405947827,1771436367958,-250.0,0.00039899,30]
[405947828,1771436367983,-156.587,0.00039899,30]
[405947829,1771436368009,-500.0,0.00039899,30]
[405947830,1771436368034,-250.0,0.00039899,30]
[405947831,1771436368058,-1888.00000001,0.00039899,30]
[405947832,1771436368083,-1098.40701948,0.00039899,30]
[405947833,1771436368108,-750.0,0.00039899,30]
[405947834,1771436368132,-250.0,0.00039899,30]
[405947835,1771436368157,-250.0,0.00039899,30]
[405947836,1771436368181,-250.0,0.00039899,30]
[405947837,1771436368205,-250.0,0.00039899,30]
[405947838,1771436368228,-750.0,0.00039899,30]
[405947839,1771436368252,-250.0,0.00039899,30]
[405947840,1771436368276,-250.0,0.00039899,30]
[405947841,1771436368299,-250.0,0.00039899,30]
[405947842,1771436368324,-250.0,0.00039899,30]
[405947843,1771436368352,-250.0,0.00039899,30]
[405947844,1771436368377,-250.0,0.00039899,30]
[405947845,1771436368402,-579752.2299,0.00039899,30]
[405947846,1771436368427,-5636.86,0.000399,120]
[405947847,1771436368453,-238.6371484,0.000399,60]
[405947848,1771436368478,-1215.36277205,0.000399,120]
[405947849,1771436368503,-431.84518453,0.00039999,31]
[405947850,1771436368529,-311.81779221,0.00039999,31]
[405947851,1771436368555,-558.04559876,0.00039999,31]
[405947852,1771436368581,-500.0,0.00039999,31]
[405947853,1771436368607,-192.68019008,0.00039999,31]
[405947854,1771436368631,-1762977.38649557,0.0004,120]
[405947855,1771436441922,360.96339,0.000156,120]
[405947856,1771436478220,1078.06174088,0.000156,120]
[405947858,1771436710267,-1000.0,0.0002745,30]
[405947859,1771436710302,-791.0,0.0002745,30]
[405947860,1771436710335,-3382.12,0.0003,30]
[405947861,1771436710368,-1000.0,0.00030195,30]
[405947862,1771436710398,-1000.0,0.00030195,30]
[405947863,1771436710429,-3382.12,0.000309,30]
[405947864,1771436710461,-3382.12,0.000318,30]
[405947865,1771436710494,-3382.12,0.000327,120]
[405947866,1771436710531,-1991.3,0.00032876,120]
[405947867,1771436710569,-1000.0,0.00033215,30]
[405947868,1771436710597,-1000.0,0.00033215,30]
[405947869,1771436710629,-579.0,0.00033215,30]
[405947870,1771436710663,-3382.12,0.000336,120]
[405947871,1771436710693,-244.43,0.000337,30]
[405947872,1771436710727,-1991.3,0.00034246,120]
[405947873,1771436710758,-3382.12,0.000345,120]
[405947874,1771436710790,-244.43,0.000353,30]
[405947875,1771436710821,-3382.12,0.000354,120]
[405947876,1771436710852,-1991.3,0.00035616,120]
[405947877,1771436710885,-3382.12,0.000363,120]